fUST/lending_fUST_20250826
["ID","MTS","AMOUNT","RATE_DAILY","PERIOD"]
[381461257,1756222239380,-151.0,0.00029985,2]
[381461258,1756222239390,-151.0,0.00029985,2]
[381461259,1756222239399,-151.0,0.00029985,2]
[381461260,1756222239409,-151.0,0.00029985,2]
[381461261,1756222239419,-151.0,0.00029985,2]
[381461262,1756222239430,-151.0,0.00029985,2]
[381461263,1756222239443,-151.0,0.00029985,2]
[381461264,1756222239454,-151.0,0.00029985,2]
[381461265,1756222239468,-151.0,0.00029985,2]
[381461266,1756222239478,-151.0,0.00029985,2]
[381461267,1756222239488,-151.0,0.00029985,2]
[381461268,1756222239498,-151.0,0.00029985,2]
[381461269,1756222239508,-151.0,0.00029985,2]
[381461270,1756222239519,-151.0,0.00029985,2]
[381461271,1756222239528,-151.0,0.00029985,2]
[381461272,1756222239538,-151.0,0.00029985,2]
[381461273,1756222239547,-500.0,0.00029985,2]
[381461274,1756222239557,-500.0,0.00029985,2]
[381461275,1756222239567,-1000.0,0.00029994,2]
[381461276,1756222239578,-1000.0,0.00029995,2]
[381461277,1756222239587,-1000.0,0.00029995,2]
[381461278,1756222239597,-3468.14,0.0003,7]
[381461279,1756222239607,-151.0,0.00030009,20]
[381461280,1756222239617,-198.0,0.00030009,20]
[381461281,1756222239627,-708.0,0.00030259,2]
[381461282,1756222239636,-151.0,0.00030259,2]
[381461283,1756222239645,-151.0,0.00030259,2]
[381461284,1756222239655,-151.0,0.00030259,2]
[381461285,1756222239664,-151.0,0.00030259,2]
[381461286,1756222239674,-151.0,0.00030259,2]
[381461287,1756222239683,-151.0,0.00030259,2]
[381461288,1756222239692,-151.0,0.00030259,2]
[381461289,1756222239702,-151.0,0.00030259,2]
[381461290,1756222239712,-151.28914424,0.00030259,2]
[381461291,1756222239722,-151.0,0.00030259,2]
[381461292,1756222239732,-151.0,0.00030259,2]
[381461293,1756222239741,-151.0,0.00030259,2]
[381461294,1756222239751,-151.0,0.00030259,2]
[381461295,1756222239761,-151.0,0.00030259,2]
[381461296,1756222239770,-151.0,0.00030259,2]
[381461297,1756222239780,-500.0,0.00030259,2]
[381461298,1756222239790,-547.0,0.00030259,2]
[381461299,1756222239800,-1500.0,0.00030268,5]
[381461300,1756222239810,-198.0,0.00030283,20]
[381461301,1756222239820,-708.0,0.00030533,2]
[381461302,1756222239829,-151.0,0.00030533,2]
[381461303,1756222239838,-198.0,0.00030533,2]
[381461304,1756222239848,-151.0,0.00030533,2]
[381461305,1756222239857,-151.0,0.00030533,2]
[381461306,1756222239867,-151.0,0.00030533,2]
[381461307,1756222239877,-198.0,0.00030533,2]
[381461308,1756222239886,-151.0,0.00030533,2]
[381461309,1756222239896,-198.0,0.00030533,2]
[381461310,1756222239906,-198.0,0.00030533,2]
[381461311,1756222239915,-198.0,0.00030533,2]
[381461312,1756222239924,-198.0,0.00030533,2]
[381461313,1756222239933,-151.0,0.00030533,2]
[381461314,1756222239943,-151.0,0.00030533,2]
[381461315,1756222239953,-449.29553303,0.00030533,2]
[381461316,1756222239963,-500.0,0.0003055,5]
[381461317,1756222239973,-500.0,0.0003055,5]
[381461318,1756222239982,-500.0,0.0003055,5]
[381461319,1756222239992,-500.0,0.0003055,5]
[381461320,1756222240001,-340.0,0.00030609,2]
[381461321,1756222240011,-504.88,0.00030629,2]
[381461322,1756222240021,-708.0,0.00030807,2]
[381461323,1756222240030,-205.31332455,0.00030807,2]
[381461324,1756222240039,-151.0,0.00030807,2]
[381461325,1756222240050,-245.0,0.00030807,2]
[381461326,1756222240060,-245.0,0.00030807,2]
[381461327,1756222240070,-151.0,0.00030807,2]
[381461328,1756222240080,-151.0,0.00030807,2]
[381461329,1756222240089,-251.21368316,0.00030807,2]
[381461330,1756222240100,-2000.0,0.00030816,5]
[381461331,1756222240111,-1360.0885523,0.00030854,2]
[381461332,1756222240122,-151.0,0.000309,20]
[381461333,1756222240132,-160.0,0.00030927,2]
[381461334,1756222240142,-160.0,0.00030927,2]
[381461335,1756222240152,-160.0,0.00030977,2]
[381461336,1756222240162,-217.18350301,0.00030977,2]
[381461337,1756222240172,-160.0,0.00030977,2]
[381461338,1756222240182,-845.07960918,0.00030977,2]
[381461339,1756222240192,-232.53539143,0.00030977,2]
[381461340,1756222240202,-216.09257821,0.00030977,2]
[381461341,1756222240212,-3979.95633364,0.0003099,2]
[381461342,1756222240223,-2800.0,0.00031,5]
[381461343,1756222240233,-376.39720582,0.00031042,2]
[381461344,1756222240243,-72923.2484032,0.00031048,2]
[381461345,1756222240254,-160.0,0.00031056,2]
[381461346,1756222240264,-1000.0,0.00031058,2]
[381461347,1756222240274,-1000.0,0.00031058,2]
[381461348,1756222240285,-469.718066,0.00031058,2]
[381461349,1756222240295,-1000.0,0.00031058,2]
[381461350,1756222240304,-1000.0,0.00031058,2]
[381461351,1756222240314,-1000.0,0.00031058,2]
[381461352,1756222240325,-1000.0,0.00031058,2]
[381461354,1756222240336,-1000.0,0.00031058,2]
[381461357,1756222240346,-1000.0,0.00031058,2]
[381461360,1756222240356,-1000.0,0.00031058,2]
[381461362,1756222240366,-1000.0,0.00031058,2]
[381461364,1756222240376,-1000.0,0.00031058,2]
[381461366,1756222240386,-1000.0,0.00031058,2]
[381461369,1756222240396,-1000.0,0.00031058,2]
[381461371,1756222240406,-665.98317863,0.00031058,2]
[381461373,1756222240416,-145846.496806,0.00031066,2]
[381461375,1756222240427,-252.72683206,0.00031073,5]
[381461377,1756222240437,-500.0,0.00031073,5]
[381461379,1756222240449,-500.0,0.00031073,5]
[381461381,1756222240459,-500.0,0.00031073,5]
[381461383,1756222240474,-500.0,0.00031073,5]
[381461385,1756222240484,-500.0,0.00031073,5]
[381461386,1756222240495,-500.0,0.00031073,5]
[381461388,1756222240506,-500.0,0.00031073,5]
[381461390,1756222240517,-648.78561667,0.00031073,5]
[381461392,1756222240527,-498.43472966,0.00031073,5]
[381461393,1756222240537,-500.0,0.00031073,5]
[381461394,1756222240548,-500.0,0.00031073,5]
[381461395,1756222240559,-500.0,0.00031073,5]
[381461396,1756222240568,-500.0,0.00031073,5]
[381461398,1756222240578,-500.0,0.00031073,5]
[381461400,1756222240588,-500.0,0.00031073,5]
[381461402,1756222240597,-456.84374954,0.00031073,5]
[381461404,1756222240607,-500.0,0.00031073,5]
[381461406,1756222240616,-500.0,0.00031073,5]
[381461408,1756222240626,-153.585396,0.00031076,7]
[381461410,1756222240635,-151.0,0.00031076,7]
[381461412,1756222240645,-151.91941,0.00031076,7]
[381461414,1756222240655,-151.0,0.00031076,7]
[381461416,1756222240665,-155.4248,0.00031076,7]
[381461418,1756222240675,-151.0,0.00031076,7]
[381461420,1756222240684,-151.0,0.00031076,7]
[381461422,1756222240694,-152.815395,0.00031076,7]
[381461425,1756222240704,-151.0,0.00031076,7]
[381461427,1756222240717,-151.0,0.00031076,7]
[381461429,1756222240727,-151.0,0.00031076,7]
[381461431,1756222240737,-151.0,0.00031076,7]
[381461433,1756222240747,-151.0,0.00031076,7]
[381461435,1756222240756,-151.0,0.00031076,7]
[381461437,1756222240766,-151.0,0.00031076,7]
[381461439,1756222240775,-151.0,0.00031076,7]
[381461441,1756222240785,-151.0,0.00031076,7]
[381461443,1756222240795,-151.0,0.00031076,7]
[381461445,1756222240805,-159.912408,0.00031076,7]
[381461448,1756222240815,-151.0,0.00031076,7]
[381461450,1756222240824,-151.0,0.00031076,7]
[381461452,1756222240834,-151.0,0.00031076,7]
[381461454,1756222240843,-151.0,0.00031076,7]
[381461456,1756222240853,-160.0,0.00031076,7]
[381461458,1756222240863,-154.766448,0.00031076,7]
[381461460,1756222240872,-151.0,0.00031076,7]
[381461463,1756222240882,-151.0,0.00031076,7]
[381461465,1756222240892,-472.919076,0.00031076,7]
[381461467,1756222240903,-245.0,0.00031076,7]
[381461469,1756222240912,-472.919076,0.00031076,7]
[381461471,1756222240922,-472.919076,0.00031076,7]
[381461473,1756222240932,-472.919076,0.00031076,7]
[381461475,1756222240943,-370000.0,0.00031076,2]
[381461477,1756222240953,-708.0,0.00031081,2]
[381461480,1756222240965,-198.0,0.00031081,2]
[381461482,1756222240975,-198.0,0.00031081,2]
[381461484,1756222240984,-198.0,0.00031081,2]
[381461486,1756222240995,-1000.0,0.00031098,5]
[381461488,1756222241005,-1000.0,0.00031098,5]
[381461490,1756222241015,-278.65759755,0.00031098,5]
[381461492,1756222241025,-1000.0,0.00031098,5]
[381461494,1756222241035,-65875.73,0.000311,7]
[381461497,1756222241045,-20899.43,0.000311,2]
[381461499,1756222241054,-217.18350301,0.000311,7]
[381461501,1756222241064,-314.55115105,0.00031145,2]
[381461502,1756222241075,-151.997968,0.0003132,2]
[381461503,1756222241084,-708.0,0.00031355,2]
[381461505,1756222241094,-2488.21088667,0.00031364,5]
[381461507,1756222241104,-444.74609792,0.00031415,2]
[381461509,1756222241113,-1778.98439168,0.00031415,2]
[381461511,1756222241123,-691.54260893,0.00031415,2]
[381461512,1756222241133,-420.0,0.00031418,2]
[381461513,1756222241143,-151.997968,0.0003143,2]
[381461514,1756222241152,-342.0,0.00031451,2]
[381461515,1756222241162,-587.66382769,0.00031503,2]
[381461524,1756222241395,-151.997968,0.0003154,2]
[381461525,1756222241406,-151.997968,0.0003154,2]
[381461526,1756222241416,-1220.8201761,0.00031575,2]
[381461527,1756222241426,-260.0,0.00031604,2]
[381461528,1756222241436,-199.0,0.00031614,120]
[381461529,1756222241450,-1000.0,0.00031621,5]
[381461530,1756222241461,-1000.0,0.00031621,5]
[381461531,1756222241472,-1000.0,0.00031621,5]
[381461532,1756222241482,-1000.0,0.00031621,5]
[381461533,1756222241493,-1000.0,0.00031621,5]
[381461534,1756222241502,-1000.0,0.00031621,5]
[381461535,1756222241512,-1000.0,0.00031621,5]
[381461536,1756222241522,-1000.0,0.00031621,5]
[381461537,1756222241531,-1000.0,0.00031621,5]
[381461538,1756222241540,-863.56989013,0.00031621,5]
[381461539,1756222241550,-708.0,0.00031629,2]
[381461540,1756222241560,-521.0,0.00031635,7]
[381461541,1756222241570,-730.44620326,0.00031646,5]
[381461542,1756222241579,-960.1691623,0.00031646,5]
[381461543,1756222241588,-1500.0,0.00031646,5]
[381461544,1756222241598,-2806.93,0.0003167,4]
[381461545,1756222241608,-1360.0885523,0.00031824,2]
[381461546,1756222241618,-465.0,0.00031847,7]
[381461547,1756222241627,-3468.14,0.000319,7]
[381461548,1756222241636,-10756.43860894,0.000319,2]
[381461549,1756222241646,-708.0,0.00031903,2]
[381461550,1756222241655,-626.8324011,0.00031986,17]
[381461551,1756222241664,-151.0,0.00031996,7]
[381461552,1756222241673,-151.0,0.00031996,7]
[381461553,1756222241683,-151.0,0.00031996,7]
[381461554,1756222241692,-482.88255195,0.00031996,2]
[381461555,1756222241702,-1356261.29957159,0.00031996,20]
[381461556,1756222241713,-5980.15968823,0.00031996,7]
[381461557,1756222241722,-707.31685429,0.00031996,2]
[381461558,1756222241731,-14999.99999901,0.00031996,2]
[381461559,1756222241741,-858.77630464,0.00031996,30]
[381461560,1756222241750,-49857.30073436,0.00031996,2]
[381461561,1756222241760,-1189.90614119,0.00031996,2]
[381461562,1756222241769,-882.10293333,0.00031996,30]
[381461563,1756222241778,-579.06340537,0.00031996,5]
[381461564,1756222241787,-6409.8759588,0.00031996,30]
[381461565,1756222241796,-2232.66998272,0.00031996,14]
[381461566,1756222241806,-149560.82997866,0.00031996,2]
[381461567,1756222241815,-160.4474459,0.00031996,2]
[381461568,1756222241826,-258.20860713,0.00031996,2]
[381461569,1756222241835,-500.72792407,0.00031997,120]
[381461570,1756222241844,-313.22,0.00032,60]
[381461571,1756222241853,-2287.4,0.00032,60]
[381461572,1756222241863,-151.0,0.00032,7]
[381461573,1756222241872,-225807.51942701,0.00032,60]
[381461574,1756222241913,-222990.03149642,0.00032,60]
[381461575,1756222241922,-151.0,0.00032,7]
[381461576,1756222241932,-10806.98028405,0.00032,7]
[381461577,1756222241941,-151.0,0.00032,7]
[381461578,1756222241951,-151.0,0.00032,7]
[381461579,1756222241960,-151.0,0.00032,7]
[381461580,1756222241969,-151.0,0.00032,7]
[381461581,1756222241979,-169.147543,0.00032,7]
[381461582,1756222241989,-151.0,0.00032,7]
[381461583,1756222241998,-151.0,0.00032,7]
[381461584,1756222242008,-159.568808,0.00032,7]
[381461585,1756222242017,-153.947959,0.00032,7]
[381461586,1756222242027,-472.919076,0.00032,7]
[381461587,1756222242036,-472.919076,0.00032,7]
[381461588,1756222242045,-472.919076,0.00032,7]
[381461589,1756222242055,-472.919076,0.00032,7]
[381461590,1756222242064,-472.919076,0.00032,7]
[381461591,1756222242074,-472.919076,0.00032,7]
[381461592,1756222242083,-472.919076,0.00032,7]
[381461593,1756222242094,-472.919076,0.00032,7]
[381461594,1756222242103,-360.0,0.00032152,2]
[381461595,1756222242113,-1009.72641863,0.00032168,5]
[381461596,1756222242122,-500.0,0.00032168,5]
[381461597,1756222242134,-843.64439473,0.00032168,5]
[381461598,1756222242143,-1500.0,0.00032168,5]
[381461599,1756222242153,-1500.0,0.00032168,5]
[381461600,1756222242162,-1500.0,0.00032168,5]
[381461601,1756222242172,-708.0,0.00032177,2]
[381461602,1756222242181,-292.14363601,0.00032194,5]
[381461603,1756222242190,-342.0,0.00032209,2]
[381461604,1756222242199,-2397.6047349,0.00032354,2]
[381461605,1756222242209,-342.0,0.00032355,2]
[381461606,1756222242219,-708.0,0.00032451,2]
[381461607,1756222242229,-342.0,0.0003248,2]
[381461608,1756222242239,-4002.71488128,0.00032508,2]
[381461609,1756222242249,-500.0,0.00032529,5]
[381461610,1756222242258,-342.0,0.0003253,2]
[381461611,1756222242267,-1373.0,0.00032551,2]
[381461612,1756222242277,-460.0,0.000327,2]
[381461613,1756222242286,-720.0,0.0003271,20]
[381461614,1756222242295,-1000.0,0.00032716,5]
[381461615,1756222242304,-2000.0,0.00032716,5]
[381461616,1756222242314,-2000.0,0.00032716,5]
[381461617,1756222242323,-708.0,0.00032725,2]
[381461618,1756222242333,-342.0,0.0003276,7]
[381461619,1756222242342,-1175.859712,0.00032794,2]
[381461620,1756222242354,-184.2288403,0.00032794,2]
[381461621,1756222242364,-5226.14,0.000328,7]
[381461622,1756222242373,-404.44221063,0.00032876,2]
[381461623,1756222242383,-320.21290625,0.00032876,2]
[381461624,1756222242392,-500.0,0.00032876,2]
[381461625,1756222242401,-500.0,0.00032876,2]
[381461626,1756222242411,-500.0,0.00032876,2]
[381461627,1756222242422,-500.0,0.00032876,2]
[381461628,1756222242432,-989.01320024,0.00032876,2]
[381461629,1756222242445,-989.01320024,0.00032876,2]
[381461630,1756222242457,-989.01320024,0.00032876,2]
[381461631,1756222242467,-989.01320024,0.00032876,2]
[381461632,1756222242477,-989.01320024,0.00032876,2]
[381461633,1756222242487,-989.01320024,0.00032876,2]
[381461634,1756222242496,-989.01320024,0.00032876,2]
[381461635,1756222242506,-989.01320024,0.00032876,2]
[381461636,1756222242516,-989.01320024,0.00032876,2]
[381461637,1756222242527,-989.01320024,0.00032876,2]
[381461638,1756222242536,-989.01320024,0.00032876,2]
[381461639,1756222242546,-989.01320024,0.00032876,2]
[381461640,1756222242555,-989.01320024,0.00032876,2]
[381461641,1756222242565,-989.01320024,0.00032876,2]
[381461642,1756222242575,-989.01320024,0.00032876,2]
[381461643,1756222242584,-989.01320024,0.00032876,2]
[381461644,1756222242594,-989.01320024,0.00032876,2]
[381461645,1756222242604,-989.01320024,0.00032876,2]
[381461646,1756222242614,-989.01320024,0.00032876,2]
[381461647,1756222242624,-989.01320024,0.00032876,2]
[381461648,1756222242633,-989.01320024,0.00032876,2]
[381461649,1756222242643,-989.01320024,0.00032876,2]
[381461650,1756222242652,-989.01320024,0.00032876,2]
[381461651,1756222242662,-989.01320024,0.00032876,2]
[381461652,1756222242671,-989.01320024,0.00032876,2]
[381461653,1756222242681,-989.01320024,0.00032876,2]
[381461654,1756222242690,-989.01320024,0.00032876,2]
[381461655,1756222242700,-989.01320024,0.00032876,2]
[381461656,1756222242710,-989.01320024,0.00032876,2]
[381461657,1756222242726,-989.01320024,0.00032876,2]
[381461658,1756222242736,-989.01320024,0.00032876,2]
[381461659,1756222242745,-989.01320024,0.00032876,2]
[381461660,1756222242756,-989.01320024,0.00032876,2]
[381461661,1756222242765,-989.01320024,0.00032876,2]
[381461662,1756222242775,-989.01320024,0.00032876,2]
[381461663,1756222242785,-989.01320024,0.00032876,2]
[381461664,1756222242795,-989.01320024,0.00032876,2]
[381461665,1756222242806,-989.01320024,0.00032876,2]
[381461666,1756222242816,-989.01320024,0.00032876,2]
[381461667,1756222242827,-4181.54536781,0.0003288,2]
[381461668,1756222242837,-185.64,0.0003288,30]
[381461669,1756222242847,-216.58306097,0.0003288,30]
[381461670,1756222242857,-216.58,0.0003288,30]
[381461671,1756222242867,-153.91123753,0.0003288,30]
[381461672,1756222242877,-153.91,0.0003288,30]
[381461673,1756222242887,-179.56311045,0.0003288,30]
[381461674,1756222242897,-179.56311045,0.0003288,30]
[381461675,1756222242906,-179.56311045,0.0003288,30]
[381461676,1756222242916,-179.56,0.0003288,30]
[381461677,1756222242926,-0.07959008,0.00032947,2]
[381461678,1756222242938,-520.92040992,0.00032947,2]
[381461679,1756222242948,-342.0,0.00032964,7]
[381461680,1756222242958,-708.0,0.00032999,2]
[381461681,1756222242974,-1000.0,0.00033077,5]
[381461682,1756222242985,-1068.39080696,0.000331,14]
[381461683,1756222243009,-160.0,0.00030927,2]
[381461684,1756222243019,-7218.67062683,0.000331,14]
[381461687,1756222243293,507.67455625,0.000271,2]
[381461688,1756222243318,1098.83063684,0.000271,2]
[381461698,1756222243960,-176.0,0.00028206,120]
[381461699,1756222243971,-500.0,0.00029125,2]
[381461700,1756222243980,-500.0,0.00029125,2]
[381461701,1756222243989,-500.0,0.00029125,2]
[381461702,1756222243998,-500.0,0.00029125,2]
[381461703,1756222244007,-500.0,0.00029125,2]
[381461704,1756222244016,-500.0,0.00029125,2]
[381461705,1756222244026,-500.0,0.00029125,2]
[381461706,1756222244035,-500.0,0.00029125,2]
[381461707,1756222244044,-500.0,0.00029125,2]
[381461708,1756222244053,-500.0,0.00029125,2]
[381461709,1756222244062,-500.0,0.00029125,2]
[381461710,1756222244071,-500.0,0.00029125,2]
[381461711,1756222244080,-500.0,0.00029125,2]
[381461712,1756222244089,-500.0,0.00029125,2]
[381461713,1756222244099,-500.0,0.00029125,2]
[381461714,1756222244113,-500.0,0.00029125,2]
[381461715,1756222244123,-500.0,0.00029125,2]
[381461716,1756222244132,-500.0,0.00029125,2]
[381461717,1756222244141,-439.8363041,0.00029125,2]
[381461718,1756222244151,-500.0,0.00029125,2]
[381461719,1756222244160,-500.0,0.00029125,2]
[381461720,1756222244170,-500.0,0.00029125,2]
[381461721,1756222244179,-130.85269589,0.00029125,2]
[381461722,1756222245134,-199.0,0.00028106,120]
[381461723,1756222245143,-369.14730411,0.00029125,2]
[381461724,1756222245152,-500.0,0.00029125,2]
[381461725,1756222245162,-500.0,0.00029125,2]
[381461726,1756222245170,-500.0,0.00029125,2]
[381461727,1756222245180,-305.16848014,0.00029125,2]
[381461731,1756222248884,5000.0,0.000271,2]
[381461732,1756222260106,1216.81044774,0.000271,2]
[381461733,1756222269143,2684.36891542,0.000271,2]
[381461734,1756222269171,2315.63108458,0.000271,2]
[381461735,1756222287880,5000.0,0.000271,2]
[381461736,1756222292182,303.35238575,0.000271,2]
[381461737,1756222295453,-304.79226468,0.00028,10]
[381461738,1756222297314,1529.08836957,0.000271,2]
[381461739,1756222300470,-71.60494114,0.00028,10]
[381461740,1756222305861,851.9381601,0.000271,2]
[381461741,1756222305886,4148.0618399,0.000271,2]
[381461742,1756222323411,5000.0,0.000271,2]
[381461743,1756222341204,851.9481601,0.000271,2]
[381461744,1756222341227,4148.0518399,0.000271,2]
[381461745,1756222342975,307.96505886,0.000199,2]
[381461746,1756222343007,392.36332521,0.000199,2]
[381461747,1756222343082,700.32838393,0.00021627,2]
[381461748,1756222343549,700.32838393,0.00026806,6]
[381461749,1756222343935,700.32838393,0.00023353,2]
[381461750,1756222352071,1156.59,0.000271,2]
[381461751,1756222354730,700.32838393,0.0002508,2]
[381461752,1756222358403,1501.69129917,0.000271,2]
[381461753,1756222358428,3498.30870083,0.000271,2]
[381461754,1756222368274,666.50286258,0.000271,2]
[381461755,1756222377979,5000.0,0.000271,2]
[381461756,1756222386841,835.19843659,0.000271,2]
[381461757,1756222386865,37.49942977,0.000271,2]
[381461758,1756222395999,5000.0,0.000271,2]
[381461759,1756222411954,4962.51057023,0.000271,2]
[381461760,1756222411977,37.48942977,0.000271,2]
[381461761,1756222428453,5000.0,0.000271,2]
[381461762,1756222445695,4962.52057023,0.000271,2]
[381461763,1756222445722,37.47942977,0.000271,2]
[381461764,1756222454659,234.68371323,0.000271,2]
[381461765,1756222463915,4944.95749305,0.000271,2]
[381461766,1756222480974,4782.88936395,0.000271,2]
[381461767,1756222480998,217.11063605,0.000271,2]
[381461769,1756222498218,2470.51314504,0.000271,2]
[381461770,1756222510476,990.21692596,0.000199,2]
[381461771,1756222510661,990.21692568,0.00021627,2]
[381461772,1756222511229,990.21692568,0.0002508,2]
[381461773,1756222562993,4341.73544159,0.000271,2]
[381461774,1756222563017,658.26455841,0.000271,2]
[381461777,1756222676552,1211.27347312,0.000199,2]
[381461778,1756222677228,1211.27347294,0.00023353,2]
[381461779,1756222691969,446.15369234,0.000271,2]
[381461780,1756222729114,176.459639,0.000271,2]
[381461781,1756222813611,-451.7,0.00027498,2]
[381461782,1756222817386,-811.0583017,0.00027498,2]
[381461783,1756222822812,-329.9,0.00027498,2]
[381461784,1756222832017,-169.27932914,0.00027498,2]
[381461785,1756222838186,-48.829989,0.00027498,2]
[381461786,1756222857977,1277.92117541,0.00023353,2]
[381461787,1756222858035,1277.92117541,0.00021627,2]
[381461788,1756222858695,1277.92117541,0.00026806,6]
[381461789,1756222858746,1277.92117568,0.000199,2]
[381461791,1756222928559,344.92671656,0.00031995,120]
[381461792,1756222955380,-400.0,0.00027477,2]
[381461793,1756222959253,-173.68,0.00027477,2]
[381461794,1756222963640,-311.58,0.00027477,2]
[381461795,1756222967505,-199.0,0.00027477,2]
[381461796,1756222972709,-168.95,0.00027477,2]
[381461797,1756222981217,-230.15569764,0.00027477,2]
[381461798,1756222984554,-168.95,0.00027477,2]
[381461799,1756222986616,-262.1,0.00027477,2]
[381461800,1756222992139,-168.95,0.00027477,2]
[381461801,1756222995509,-199.0,0.00027477,2]
[381461802,1756222998148,-156.96,0.00027477,2]
[381461803,1756223001895,-297.61056082,0.00027477,2]
[381461804,1756223003775,-174.34571015,0.00027477,2]
[381461805,1756223005001,-116.01886859,0.00027477,2]
[381461806,1756223005025,-173.48406566,0.00028,2]
[381461807,1756223025966,1184.90046228,0.000199,2]
[381461808,1756223025996,142.04377981,0.000199,2]
[381461809,1756223026229,1326.94424191,0.00023353,2]
[381461810,1756223026289,1326.94424191,0.00026806,6]
[381461811,1756223026583,1326.94424191,0.0002508,2]
[381461812,1756223026889,1326.94424191,0.00021627,2]
[381461813,1756223034511,4550.18925255,0.000271,2]
[381461814,1756223034534,449.81074745,0.000271,2]
[381461815,1756223051465,4008.17877037,0.000271,2]
[381461816,1756223068938,841.25446853,0.000271,2]
[381461819,1756223101717,162.855111,0.00013699,2]
[381461820,1756223101985,162.855111,0.00021918,2]
[381461821,1756223107026,-262.40773611,0.00027419,2]
[381461822,1756223113730,-160.0,0.00027419,2]
[381461823,1756223118172,-169.59226389,0.00027419,2]
[381461824,1756223130167,170.0,0.00027361,120]
[381461825,1756223168111,155.146062,0.00026694,2]
[381461826,1756223168370,384.98086516,0.00026695,2]
[381461827,1756223184004,3834.92886449,0.000271,2]
[381461828,1756223184034,1165.07113551,0.000271,2]
[381461829,1756223190782,322.18024609,0.00026839,2]
[381461831,1756223208347,-163.68128374,0.00027999,2]
[381461832,1756223216313,1247.55961955,0.000199,2]
[381461833,1756223216375,1247.55961937,0.00023353,2]
[381461834,1756223216533,1247.55961937,0.00026806,6]
[381461835,1756223217027,1247.55961937,0.0002508,2]
[381461836,1756223248085,-2076.8027709,0.00027317,2]
[381461837,1756223248107,-7.50066433,0.00027999,2]
[381461838,1756223248132,-1200.0,0.00028099,2]
[381461839,1756223248153,-300.0,0.00028099,2]
[381461840,1756223248177,-5730.0,0.000281,2]
[381461841,1756223248198,-242.50003136,0.00028473,96]
[381461842,1756223248219,-1621.64049199,0.00028573,2]
[381461843,1756223248239,-171.18194806,0.00028573,2]
[381461844,1756223248261,-500.0,0.0002866,2]
[381461845,1756223248285,-500.0,0.0002866,2]
[381461846,1756223248306,-500.0,0.0002866,2]
[381461847,1756223248328,-500.0,0.0002866,2]
[381461848,1756223248349,-500.0,0.0002866,2]
[381461849,1756223248371,-500.0,0.0002866,2]
[381461850,1756223248392,-500.0,0.0002866,2]
[381461851,1756223248413,-500.0,0.0002866,2]
[381461852,1756223248434,-215.53736712,0.0002866,2]
[381461853,1756223248458,-500.0,0.0002866,2]
[381461854,1756223248478,-500.0,0.0002866,2]
[381461855,1756223248500,-500.0,0.0002866,2]
[381461856,1756223248522,-500.0,0.0002866,2]
[381461857,1756223248545,-500.0,0.0002866,2]
[381461858,1756223248568,-500.0,0.0002866,2]
[381461859,1756223248590,-500.0,0.0002866,2]
[381461860,1756223248613,-500.0,0.0002866,2]
[381461861,1756223248635,-500.0,0.0002866,2]
[381461862,1756223248657,-500.0,0.0002866,2]
[381461863,1756223248680,-500.0,0.0002866,2]
[381461864,1756223248704,-500.0,0.0002866,2]
[381461865,1756223248726,-500.0,0.0002866,2]